Cogmind - Beta 14 @@@ ROGUE MODE // 2025.03.28 @ 21:58:10 Player: Prakos Result: Self-destructed Performance ------------- Evolutions (2) 1000 Regions Visited (5) 1000 Robots Destroyed (11) 55 Value Destroyed (212) 212 Prototype IDs (0) 0 Alien Tech Used (0) 0 Bonus (0) 0 TOTAL SCORE: 2267 Bonus ------- None Cogmind --------- Core Integrity 367/550 Matter 300/300 Energy 240/350 System Corruption 0% Temperature Warm (161) Movement Core (150) Ox2 Location -8/Materials Parts ------- > --- POWER (1) -------- (None) > --- PROPULSION (3) --- (None) > --- UTILITY (5) ------ Small Storage Unit High-capacity Battery Visual Processing Unit > --- WEAPON (2) ------- (None) > --- INVENTORY (8) ---- Light Ion Engine Light Ion Engine Improved Hover Unit Improved Hover Unit Signal Interpreter Makeshift Axe Peak State ------------ > --- POWER ------------ Light Ion Engine > --- PROPULSION ------- Improved Hover Unit Improved Hover Unit > --- UTILITY ---------- Small Storage Unit Visual Processing Unit > --- WEAPON ----------- Heavy EM Pulse Gun Heavy EM Pulse Gun > --- INVENTORY -------- Light Ion Engine Aluminum Leg Aluminum Leg Improved Hover Unit Improved Hover Unit Signal Interpreter Explosive Trap Explosive Trap [Rating: 13] Favorites ----------- Power Light Ion Engine Engine Light Ion Engine Propulsion Improved Hover Unit Wheel Compact Wheel Hover Unit Improved Hover Unit Utility Small Storage Unit Storage Small Storage Unit Processor Visual Processing Unit Weapon Heavy EM Pulse Gun Energy Gun Heavy EM Pulse Gun Energy Cannon Light EM Pulse Cannon Ballistic Gun Assault Rifle Build | -11 -10 -10 -9 -9 -8 ------- Run | Yrd Mat Min Mat Min Mat Slots Evolved 4 | . . . 2 . 2 Power . | . . . . . . Propulsion 1 | . . . 1 . . Utility 3 | . . . 1 . 2 Weapon . | . . . . . . Parts Attached 16 | 6 7 . 1 . 2 Power 2 | 1 . . 1 . . Engine 2 | 1 . . 1 . . Core . | . . . . . . Reactor . | . . . . . . Propulsion 4 | 2 2 . . . . Treads . | . . . . . . Leg . | . . . . . . Wheel 2 | 2 . . . . . Hover 2 | . 2 . . . . Flight . | . . . . . . Utility 3 | 1 1 . . . 1 Device . | . . . . . . Storage 2 | 1 . . . . 1 Processor 1 | . 1 . . . . Hackware . | . . . . . . Protection . | . . . . . . Artifact . | . . . . . . Weapon 7 | 2 4 . . . 1 Energy Gun 5 | 1 4 . . . . Energy Cannon 1 | . . . . . 1 Ballistic Gun 1 | 1 . . . . . Ballistic Cannon . | . . . . . . Launcher . | . . . . . . Special Weapon . | . . . . . . Impact Weapon . | . . . . . . Slashing Weapon . | . . . . . . Piercing Weapon . | . . . . . . Special Melee Weapon . | . . . . . . Unidentified Prototypes . | . . . . . . Parts Lost 5 | . . . . . 5 Power . | . . . . . . Propulsion 2 | . . . . . 2 Utility . | . . . . . . Weapon 3 | . . . . . 3 Highest Loss Streak 5 | . . . . . 5 To Critical Strikes . | . . . . . . Average Slot Usage (%) 88 | . 92 100 77 77 59 Engine 12 | . 14 14 11 11 7 Hover 24 | . 26 28 22 22 16 Storage 12 | . 14 14 11 11 10 Processor 11 | . 10 14 11 11 9 Energy Gun 23 | . 24 28 22 22 13 Peak Build Rating 13 | 6 12 13 13 13 13 Average Rating 11 | 4 10 12 13 13 12 On Entrance 9 | . 6 12 13 13 13 Naked Turns . | . . . . . . Heaviest Build 16 | 12 14 14 16 16 16 Greatest Support 32 | 32 32 14 14 14 14 Greatest Overweight (x) 2 | 2 1 . 1 1 1 Average Overweight (x) . | . . . . 1 . Largest Inventory Capacity 8 | 8 8 8 8 8 8 Average Capacity 7 | 7 8 8 8 8 8 Most Carried 8 | 3 6 8 7 7 7 Average Carried 6 | 1 5 7 6 7 6 Final Capacity 8 | 8 8 8 8 8 8 Final Carried 8 | 3 6 8 7 7 6 Class Distribution -------------------- 100% | Mutant Dominant Class ---------------- Mutant | -10/Materials Mutant | -10/Mines Mutant | -9/Materials Mutant | -9/Mines Mutant | -8/Materials Resources | -11 -10 -10 -9 -9 -8 ----------- Run | Yrd Mat Min Mat Min Mat Matter Collected 339 | 228 101 . 10 . . Remotely . | . . . . . . Salvage Created 285 | . 63 76 34 . 112 Parts 26 | . 7 5 6 . 8 Haulers Intercepted . | . . . . . . Recyclers Shooed . | . . . . . . Parts Field Recycled . | . . . . . . Retrieved Matter . | . . . . . . Parts Self-Destructed . | . . . . . . Prevented . | . . . . . . Kills | -11 -10 -10 -9 -9 -8 ------- Run | Yrd Mat Min Mat Min Mat Combat Hostiles Destroyed 6 | . . 4 . . 2 Guns 6 | . . 4 . . 2 Classes Destroyed 5 | . 1 1 1 . 2 Operator 2 | . . . 2 . . Watcher 3 | . 3 . . . . Swarmer 4 | . . 4 . . . Grunt 1 | . . . . . 1 Sentry 1 | . . . . . 1 Best Kill Streak 3 | . 3 3 1 . 2 Combat Bots Only 3 | . . 3 . . 2 Max Kills in Single Turn 1 | . 1 1 1 . 1 Gunslinging . | . . . . . . Exploded . | . . . . . . Melee . | . . . . . . Uniques/NPCs Destroyed . | . . . . . . Combat | -11 -10 -10 -9 -9 -8 -------- Run | Yrd Mat Min Mat Min Mat Hostile Shots Fired 60 | . . 21 . . 39 Missed 24 | . . 10 . . 14 Damage Taken 553 | 1 . 84 . . 468 Core 197 | 1 . 13 . . 183 Absorbed by Shields . | . . . . . . Core Remaining (%) 97 | 99 . 94 . 100 . Volleys Fired 31 | 1 3 11 2 . 14 Largest 2 | 2 2 2 2 . 2 Hottest 101 | 70 90 90 90 . 101 Shots Fired 55 | 2 6 20 4 . 23 Gun 50 | 2 6 20 4 . 18 Cannon 5 | . . . . . 5 Launcher . | . . . . . . Special . | . . . . . . Kinetic 1 | 1 . . . . . Thermal 1 | 1 . . . . . Explosive . | . . . . . . Electromagnetic 53 | . 6 20 4 . 23 Robot Hit Streak 8 | . 4 5 4 . 8 Robot Miss Streak 2 | . 1 2 . . 1 Penetration Max . | . . . . . . Secondary Targets 1 | . . 1 . . . Max Gunslinging Chain 1 | . . 1 . . . Shots Hit Robots 34 | . 4 12 2 . 16 Core Hits 16 | 1 3 4 2 . 6 Critical Kills . | . . . . . . Critical Parts Destroyed . | . . . . . . Critical Strikes 2 | . . 1 1 . . Corrupt 2 | . . 1 1 . . Melee Attacks . | . . . . . . Impact . | . . . . . . Slashing . | . . . . . . Piercing . | . . . . . . Sneak Attacks . | . . . . . . Combat Hostiles . | . . . . . . Follow-up Attacks . | . . . . . . Damage Inflicted 677 | 3 100 231 38 . 305 Guns 482 | . 100 158 38 . 186 Cannons 84 | . . . . . 84 Explosions 108 | . . 73 . . 35 Melee . | . . . . . . Ramming 3 | 3 . . . . . Kinetic . | . . . . . . Thermal 108 | . . 73 . . 35 Explosive . | . . . . . . Electromagnetic 566 | . 100 158 38 . 270 Impact . | . . . . . . Slashing . | . . . . . . Piercing . | . . . . . . Highest Corruption 2 | . . . 2 2 . Average Corruption 2 | . . . 2 2 . Corruption Purged . | . . . . . . Corruption Blocked . | . . . . . . Overload Shots . | . . . . . . Overflow Damage 67 | . . 33 . . 34 Projectiles . | . . . . . . Explosions 67 | . . 33 . . 34 Melee . | . . . . . . Knockbacks . | . . . . . . Impact . | . . . . . . Kinetic . | . . . . . . Secondary . | . . . . . . Self-Inflicted Damage 41 | 1 . . . . 40 Shots 1 | . . . . . 1 Rammed 1 | 1 . . . . . Targets Rammed 1 | 1 . . . . . Kicked . | . . . . . . Crushed . | . . . . . . Highest Temperature 232 | 9 72 232 27 . 161 Average Temperature 79 | 6 32 105 15 . 81 Received Heat Transfer 171 | . . . . . 171 Siege Activations . | . . . . . . Robots Corrupted . | . . . . . . Combat Hostiles . | . . . . . . Parts Fried . | . . . . . . Impact Corruptions . | . . . . . . Robots Melted . | . . . . . . Combat Hostiles . | . . . . . . Parts Melted . | . . . . . . Heat Transferred 150 | . . 100 . . 50 Parts Sabotaged . | . . . . . . Parts Stolen . | . . . . . . Parts Stripped . | . . . . . . Power Chain Reactions 2 | . . 1 . . 1 Alert | -11 -10 -10 -9 -9 -8 ------- Run | Yrd Mat Min Mat Min Mat Peak Influence 144 | . 46 144 90 34 53 Initial 55 | . . 17 55 34 13 Average 49 | . 17 77 78 34 27 Maximum Alert Level . | . . . . . . Low Security (%) 100 | 100 100 100 100 100 100 Level 1 . | . . . . . . Level 2 . | . . . . . . Level 3 . | . . . . . . Level 4 . | . . . . . . Level 5 . | . . . . . . High Security . | . . . . . . Max Security . | . . . . . . Squads Dispatched 2 | . . . 2 . . Investigation 1 | . . . 1 . . Extermination . | . . . . . . Reinforcement 1 | . . . 1 . . Assault . | . . . . . . Garrison . | . . . . . . Intercept . | . . . . . . Searches Triggered . | . . . . . . Construction Impeded . | . . . . . . Haulers Reinforced . | . . . . . . Active Scanning Responses . | . . . . . . Cargo Convoy Interrupts . | . . . . . . Stealth | -11 -10 -10 -9 -9 -8 --------- Run | Yrd Mat Min Mat Min Mat Distress Signals 3 | . . . . . 3 Communications Jammed . | . . . . . . Distress Signals . | . . . . . . Times Spotted 19 | . 3 5 2 . 9 Peak Tracking Total 7 | . 3 3 1 . 7 Tactical Retreats 1 | . . 1 . . . Traps | -11 -10 -10 -9 -9 -8 ------- Run | Yrd Mat Min Mat Min Mat Traps Triggered 1 | . . . 1 . . Indirectly . | . . . . . . Trap Hack Attempts . | . . . . . . Triggered . | . . . . . . Disarmed . | . . . . . . Reprogrammed . | . . . . . . Reused . | . . . . . . Traps Extracted . | . . . . . . Installed 1 | . . 1 . . . Triggered . | . . . . . . Most Traps Carried 2 | . . 2 . . . Machines | -11 -10 -10 -9 -9 -8 ---------- Run | Yrd Mat Min Mat Min Mat Machines Disabled 1 | . . . 1 . . Max in Single Turn 1 | . . . 1 . . Machines Repaired . | . . . . . . Machines Dismantled . | . . . . . . Machines Sabotaged . | . . . . . . Overloaded Fab Kills . | . . . . . . Hacking | -11 -10 -10 -9 -9 -8 --------- Run | Yrd Mat Min Mat Min Mat Machines Accessed 3 | . 2 . 1 . . Terminals 3 | . 2 . 1 . . Fabricators . | . . . . . . Repair Stations . | . . . . . . Recycling Units . | . . . . . . Scanalyzers . | . . . . . . Garrison Access . | . . . . . . Total Hacks 9 | . 6 . 3 . . Successful 5 | . 3 . 2 . . Failed 4 | . 3 . 1 . . Catastrophic 1 | . 1 . . . . Database Lockouts . | . . . . . . Manual 6 | . 5 . 1 . . Terminals 9 | . 6 . 3 . . Fabricators . | . . . . . . Repair Stations . | . . . . . . Recycling Units . | . . . . . . Scanalyzers . | . . . . . . Garrison Access . | . . . . . . Terminal Hacks 2 | . 1 . 1 . . Robot Analysis 1 | . . . 1 . . Zone Layout 1 | . 1 . . . . Fabricator Hacks . | . . . . . . Repair Station Hacks . | . . . . . . Recycling Unit Hacks . | . . . . . . Scanalyzer . | . . . . . . Garrison Access Hacks . | . . . . . . Unauthorized Hacks 3 | . 2 . 1 . . Terminals 3 | . 2 . 1 . . Botnet 3 | . 2 . 1 . . Fabricators . | . . . . . . Repair Stations . | . . . . . . Recycling Units . | . . . . . . Scanalyzers . | . . . . . . Garrison Access . | . . . . . . Data Cores Recovered . | . . . . . . Used . | . . . . . . Hacking Detections 3 | . 2 . 1 . . Full Trace Events 1 | . . . 1 . . Feedback Events . | . . . . . . Feedback Blocked . | . . . . . . Robot Schematics Acquired . | . . . . . . Robots Built . | . . . . . . Authchips . | . . . . . . Time . | . . . . . . Total Robot Build Rating . | . . . . . . Part Schematics Acquired . | . . . . . . Parts Built . | . . . . . . Authchips . | . . . . . . Time . | . . . . . . Total Part Build Rating . | . . . . . . Parts Repaired . | . . . . . . Time . | . . . . . . Parts Recycled . | . . . . . . Recycled Matter . | . . . . . . Retrieved Matter . | . . . . . . Retrieved Components . | . . . . . . Parts Scanalyzed . | . . . . . . Part Schematics Acquired . | . . . . . . Parts Damaged . | . . . . . . Bothacking | -11 -10 -10 -9 -9 -8 ------------ Run | Yrd Mat Min Mat Min Mat Used RIF Installer . | . . . . . . Robots Hacked . | . . . . . . Non-combat . | . . . . . . Combat . | . . . . . . Robot Hacks Applied . | . . . . . . Relay Couplers Released . | . . . . . . Fabnet Peak Effective % . | . . . . . . Robots Rewired . | . . . . . . Allies Hacked . | . . . . . . Hacks Repelled . | . . . . . . Allies | -11 -10 -10 -9 -9 -8 -------- Run | Yrd Mat Min Mat Min Mat Total Allies . | . . . . . . Largest Group . | . . . . . . Highest-Rated Group . | . . . . . . Highest-Rated Ally . | . . . . . . Total Orders . | . . . . . . Ally Attacks . | . . . . . . Total Damage . | . . . . . . Kills . | . . . . . . Allies Corrupted . | . . . . . . Allies Melted . | . . . . . . Intel | -11 -10 -10 -9 -9 -8 ------- Run | Yrd Mat Min Mat Min Mat Robot Analysis Total 1 | . . . 1 . . Derelict Logs Recovered 2 | . . 1 . 1 . Drone Launches . | . . . . . . Drone Recoveries . | . . . . . . Exploration | -11 -10 -10 -9 -9 -8 ------------- Run | Yrd Mat Min Mat Min Mat Turns Passed 552 | 51 110 230 53 26 82 Spaces Moved 605 | 35 142 334 47 23 24 Core 9 | 9 . . . . . Treads . | . . . . . . Legs . | . . . . . . Wheels 30 | 26 4 . . . . Hover 566 | . 138 334 47 23 24 Flight . | . . . . . . Fastest Speed 50 | 50 56 56 56 116 56 Average Speed 65 | 102 57 56 95 116 76 Slowest Speed 150 | 150 120 56 116 116 116 Overloaded Moves . | . . . . . . Propulsion Burnouts . | . . . . . . Robots Hopped . | . . . . . . Cave-ins Triggered . | . . . . . . Exploration Rate (%) 23 | 3 33 68 11 17 7 Regions Visited 5 Branch Regions 2 Pre-discovered Areas 1 | . . 1 . . . Known Exits Taken . | . . . . . . Unknown Exits Taken 5 | 1 1 1 1 1 . Scrap Searched 2 | . . 2 . . . Spaces Dug . | . . . . . . Terrain Destroyed 7 | . . 7 . . . Melee . | . . . . . . Projectile . | . . . . . . AOE 7 | . . 7 . . . Terrain Rammed . | . . . . . . Walls Destroyed . | . . . . . . Machines Disabled . | . . . . . . Actions | -11 -10 -10 -9 -9 -8 --------- Run | Yrd Mat Min Mat Min Mat Total 702 | 45 163 357 51 22 64 Wait 33 | . 3 6 . . 24 Move 601 | 35 141 333 46 22 24 Hop . | . . . . . . Pick Up 10 | 3 3 4 . . . Fast Attach 14 | 6 7 . . . 1 Attach 1 | . . . . . 1 Detach . | . . . . . . Swap 1 | . . . 1 . . Drop 10 | . 6 2 2 . . Fire 31 | 1 3 11 2 . 14 Melee . | . . . . . . Ram . | . . . . . . Kick . | . . . . . . Crush . | . . . . . . Escape Stasis . | . . . . . . Rewire . | . . . . . . Trap 1 | . . 1 . . . Miscellaneous . | . . . . . . Route ------- -11/Scrapyard -10/Materials -10/Mines -9/Materials -9/Mines -8/Materials History --------- Turn | Location | Event 35 | -11/Scrapyard | Discovered new exit (range 15) 52 | -11/Scrapyard | Entered Materials 135 | -10/Materials | Discovered new exit (range 12) 162 | -10/Materials | Entered Mines 174 | -10/Mines | Found a hidden stash of uninstalled traps 220 | -10/Mines | Met a Derelict bent on vengeance 270 | -10/Mines | Learned location of Zion (-6) 288 | -10/Mines | A weapon hastily lodged in a ceiling crevice suddenly fell to the ground 310 | -10/Mines | Build established: Mutant 386 | -10/Mines | Discovered new exit (range 11) 392 | -10/Mines | Entered Materials 392 | -9/Materials | Evolved 2 slots: Propulsion x1, Utility x1 422 | -9/Materials | Discovered new exit (range 18) 445 | -9/Materials | Entered Mines 466 | -9/Mines | Discovered new exit (range 4) 471 | -9/Mines | Entered Materials 471 | -8/Materials | Evolved 2 slots: Utility x2 553 | -8/Materials | Self-destructed Last Messages --------------- 00538_ K-01 Serf cleans the Terminal. 00539_ R-06 Scavenger collects Corrupted Lgt. Treads. 00543_ R-06 Scavenger collects Aluminum Leg. 00544_ G-47 Trooper IFF system glitched. 00544_ U-05 Engineer destroyed. 00544_ K-01 Serf collects debris. 00544_ Imp. Hover Unit destroyed. 00545_ Ion Engine severed. 00546_ R-06 Scavenger collects Lgt. Nuclear Core. 00547_ K-01 Serf cleans the Terminal. 00550_ Critical hit (Burn: +37). 00550_ Chain reaction triggered in Imp. Ion Engine. 00550_ Hvy. EM Pulse Gun destroyed. 00550_ Destroyed Hvy. EM Pulse Gun. 00550_ Imp. Hover Unit destroyed. 00552_ K-01 Serf collects debris. 00552_ Lgt. EM Pulse Cannon destroyed. Map ----- +----------------------------------------------------+ | ??????????????????????????????????????????????? | | ??????????????????????????????????????????????? | | ??????????????????????????????????????????????? | | ??????????????????????????????????????????????? | | ??????????????????????????????????????????????? | | ??????????????????????????????????????????????? | | ??????????????????????????????????????????????? | | ??????????????????????????????????????????????? | | ??????????????????????????????????????????????? | | ??????????????????????????????????????????????? | | ??????????????????????????????????????????????? | | ?????????????????###??????????????????????????? | | ?????????????????# ?????????????????????????? | | ????????????????? ?????????????????????????? | | ?????????????????? T?????????????????????????? | | ?????????????????? ?????????????????????????? | | ??????????????????# ?????????????????????????? | | ??????????????????# ?????????????????????????? | | ??????????????????# ##########???????????????? | | ??????????????????# ????????????????? | | ??????????????????# gg ?????????????????? | | ??????????????????# #??????????????????? | | ????????????????### #??????????????????? | | ????????????????#"" =]] #??????????????????? | | ????????????????#"" ]l #??????????????????? | | ????????????????#"T ]@ #??????????????????? | | ????????????????#"" #??????????????????? | | ????????????????#"" #??????????????????? | | ????????????????### #??????????????????? | | ??????????????????# ! +??????????????????? | | ??????????????????#k """%=#??????????????????? | | ??????????????????# """* #??????????????????? | | ??????????????????# """ Y#??????????????????? | | ??????????????????# """ #??????????????????? | | ??????????????????# """ #??????????????????? | | ??????????????????# #??????????????????? | | ??????????????????# #??????????????????? | | ??????????????????# #??????????????????? | | ??????????????????# #??????????????????? | | ???????############ %[!! #??????????????????? | | ???????# ! %!! ??????????? | | ???????# !! ?????????? | | ???????# ] ?????????? | | ???????# ####### ??????????? | | ???????################ ##??????????????????? | | ??????????????????????? #???????????????????? | | ??????????????????????? #???????????????????? | | ??????????????????????? #???????????????????? | | ???????????????????????? #???????????????????? | | ???????????????????????? #???????????????????? | +----------------------------------------------------+ Best States ------------- Heat Dissipation 31 Energy Generation 10 Energy Capacity 350 Matter Stores 300 Matter Capacity 300 Sight Range 18 Terrain Scan Density 10 Evasion (%) 53 Item Schematics ----------------- None Robot Schematics ------------------ None Fabricated ------------ Nothing Alien Tech Used ----------------- None Achievements -------------- None Challenges ------------ None Game ------ Seed NullGreatPick Manual? 0 Play Time 00:13:59 Cumulative 31.1 hours Start 2025.03.28 @ 21:46:14 End 2025.03.28 @ 21:58:10 Sessions 1 Manual Loads 0 Difficulty Rogue Special Mode None Game No. 22 Rogue 22 Adventurer 0 Explorer 0 Win Type - Total 0 Types 0/0/0/0/0/0/0/0/0 Lore% 7 Gallery% 22 Achievement% 29 Wizard Run 0 Options --------- Layout 1 ASCII 0 Keyboard 0 Movement Mouse Keybinds 0 Fullscreen 1 Font 24/Smallcaps Map View 50x35 Zoom Use 0% Tactical HUD 1 Map Filters NONE Filters NONE Steam 1 RUN: 125e61e3-8584-4a3e-8ec8-7cb165770cfc